Cogmind - Beta 11.1 @@@ ROGUE MODE // 2022.12.14 @ 17:33:22 Player: L1l7 Result: Destroyed by G-34 Mercenary with Small Laser Performance ------------- Evolutions (1) 500 Regions Visited (3) 600 Robots Destroyed (5) 25 Value Destroyed (44) 44 Prototype IDs (1) 20 Alien Tech Used (0) 0 Bonus (0) 0 TOTAL SCORE: 1189 Bonus ------- None Cogmind --------- Core Integrity 0/400 Matter 280/300 Energy 92/100 System Corruption 2% Temperature Cool (10) Movement Flying (37) Location -9/Storage Parts ------- > --- POWER (1) -------- (None) > --- PROPULSION (2) --- Flight Unit Flight Unit > --- UTILITY (4) ------ (None) > --- WEAPON (2) ------- Improved Medium Laser > --- INVENTORY (5) ---- Large Storage Unit Improved Medium Laser Improved Medium Laser Peak State ------------ > --- POWER ------------ Ion Engine > --- PROPULSION ------- Wheel Compact Wheel > --- UTILITY ---------- Small Storage Unit Seismic Detector > --- WEAPON ----------- Medium Laser Light Assault Rifle > --- INVENTORY -------- Light Ion Engine [Rating: 7] Favorites ----------- Power Ion Engine Engine Ion Engine Propulsion Wheel Wheel Wheel Flight Unit Flight Unit Utility Seismic Detector Device Seismic Detector Storage Small Storage Unit Processor Terrain Scan Processor Weapon Light Assault Rifle Energy Gun Medium Laser Ballistic Gun Light Assault Rifle Build | -11 -10 -9 -9 ------- Run | Scr Mat Mat Sto Slots Evolved 2 | . . 2 . Power . | . . . . Propulsion . | . . . . Utility 2 | . . 2 . Weapon . | . . . . Parts Attached 20 | 7 2 3 8 Power 2 | 1 . 1 . Engine 2 | 1 . 1 . Core . | . . . . Reactor . | . . . . Propulsion 7 | 2 2 1 2 Treads . | . . . . Leg . | . . . . Wheel 5 | 2 2 1 . Hover . | . . . . Flight 2 | . . . 2 Utility 7 | 2 . 1 4 Device 3 | 1 . . 2 Storage 2 | 1 . 1 . Processor 2 | . . . 2 Hackware . | . . . . Protection . | . . . . Artifact . | . . . . Weapon 4 | 2 . . 2 Energy Gun 3 | 1 . . 2 Energy Cannon . | . . . . Ballistic Gun 1 | 1 . . . Ballistic Cannon . | . . . . Launcher . | . . . . Special Weapon . | . . . . Impact Weapon . | . . . . Slashing Weapon . | . . . . Piercing Weapon . | . . . . Special Melee Weapon . | . . . . Unidentified Prototypes 1 | . . . 1 Parts Lost 9 | . 2 6 1 Power 2 | . 1 1 . Propulsion 4 | . 1 3 . Utility 2 | . . 1 1 Weapon 1 | . . 1 . Highest Loss Streak 6 | . 1 6 1 To Critical Strikes . | . . . . Average Slot Usage (%) 60 | . 99 51 15 Engine 8 | . 13 9 . Wheel 16 | . 28 14 . Device 9 | . 14 7 5 Storage 8 | . 14 7 . Energy Gun 8 | . 14 4 4 Ballistic Gun 8 | . 14 7 . Naked Turns 47 | . . 28 19 Heaviest Build 27 | 14 14 27 4 Greatest Support 26 | 26 26 26 8 Greatest Overweight (x) 2 | . . 2 1 Average Overweight (x) . | . . . . Largest Inventory Capacity 15 | 8 8 15 5 Average Capacity 8 | 7 8 11 5 Most Carried 4 | 3 2 4 4 Average Carried 2 | . 1 2 3 Final Capacity 8 | 8 8 5 5 Final Carried 4 | 1 2 4 3 Class Distribution -------------------- 100% | Mutant Dominant Class ---------------- Mutant | -10/Materials Mutant | -9/Materials Mutant | -9/Storage Resources | -11 -10 -9 -9 ----------- Run | Scr Mat Mat Sto Matter Collected 352 | 176 18 103 55 Remotely . | . . . . Salvage Created 77 | 11 18 . 48 Parts 11 | 2 2 . 7 Haulers Intercepted . | . . . . Recyclers Shooed . | . . . . Parts Field Recycled . | . . . . Retrieved Matter . | . . . . Parts Self-Destructed . | . . . . Prevented . | . . . . Kills | -11 -10 -9 -9 ------- Run | Scr Mat Mat Sto Combat Hostiles Destroyed 3 | . . . 3 Guns 3 | . . . 3 Classes Destroyed 2 | 1 . . 1 Tunneler 2 | 1 1 . . Swarmer 3 | . . . 3 Best Kill Streak 3 | 1 1 . 3 Combat Bots Only 3 | . . . 3 Max Kills in Single Turn 1 | 1 1 . 1 Gunslinging . | . . . . Exploded . | . . . . Melee . | . . . . Uniques/NPCs Destroyed . | . . . . Combat | -11 -10 -9 -9 -------- Run | Scr Mat Mat Sto Damage Taken 1056 | . 319 406 331 Core 485 | . 78 169 238 Absorbed by Shields . | . . . . Core Remaining (%) 84 | 100 68 . . Volleys Fired 17 | 5 5 . 7 Largest 2 | 2 2 . 1 Hottest 70 | 70 70 . 56 Shots Fired 27 | 10 10 . 7 Gun 27 | 10 10 . 7 Cannon . | . . . . Launcher . | . . . . Special . | . . . . Kinetic 10 | 5 5 . . Thermal 17 | 5 5 . 7 Explosive . | . . . . Electromagnetic . | . . . . Robot Hit Streak 7 | 7 2 . 3 Robot Miss Streak 5 | 2 5 . 2 Penetration Max . | . . . . Secondary Targets . | . . . . Shots Hit Robots 15 | 8 3 . 4 Core Hits 6 | 2 1 . 3 Critical Kills . | . . . . Critical Parts Destroyed . | . . . . Critical Strikes . | . . . . Melee Attacks . | . . . . Impact . | . . . . Slashing . | . . . . Piercing . | . . . . Sneak Attacks . | . . . . Combat Hostiles . | . . . . Follow-up Attacks . | . . . . Damage Inflicted 197 | 83 30 . 84 Guns 197 | 83 30 . 84 Cannons . | . . . . Explosions . | . . . . Melee . | . . . . Ramming . | . . . . Kinetic 50 | 33 17 . . Thermal 147 | 50 13 . 84 Explosive . | . . . . Electromagnetic . | . . . . Impact . | . . . . Slashing . | . . . . Piercing . | . . . . Highest Corruption 2 | . . 2 2 Average Corruption 2 | . . 2 2 Corruption Purged . | . . . . Corruption Blocked . | . . . . Effects 2 | . . 2 . Matter Fused 1 | . . 1 . Energy Discharges 1 | . . 1 . Overload Shots . | . . . . Overflow Damage . | . . . . Projectiles . | . . . . Explosions . | . . . . Melee . | . . . . Knockbacks . | . . . . Impact . | . . . . Kinetic . | . . . . Secondary . | . . . . Self-Inflicted Damage . | . . . . Shots . | . . . . Rammed . | . . . . Targets Rammed . | . . . . Kicked . | . . . . Crushed . | . . . . Highest Temperature 70 | 70 68 . . Average Temperature 32 | 36 28 . . Received Heat Transfer 447 | . 180 165 102 Siege Activations . | . . . . Robots Corrupted . | . . . . Combat Hostiles . | . . . . Parts Fried . | . . . . Impact Corruptions . | . . . . Robots Melted . | . . . . Combat Hostiles . | . . . . Parts Melted 1 | . . . 1 Heat Transferred 370 | 148 37 . 185 Parts Sabotaged . | . . . . Parts Stolen . | . . . . Parts Stripped . | . . . . Power Chain Reactions . | . . . . Missiles Intercepted . | . . . . Alert | -11 -10 -9 -9 ------- Run | Scr Mat Mat Sto Peak Influence 167 | 5 60 60 167 Initial 25 | . 3 16 25 Average 34 | . 37 18 71 Maximum Alert Level . | . . . . Low Security (%) 100 | 100 100 100 100 Level 1 . | . . . . Level 2 . | . . . . Level 3 . | . . . . Level 4 . | . . . . Level 5 . | . . . . High Security . | . . . . Max Security . | . . . . Squads Dispatched 4 | . 1 2 1 Investigation 1 | . . 1 . Extermination . | . . . . Reinforcement 3 | . 1 1 1 Assault . | . . . . Garrison . | . . . . Intercept . | . . . . Searches Triggered . | . . . . Construction Impeded . | . . . . Haulers Reinforced . | . . . . Active Scanning Responses . | . . . . Cargo Convoy Interrupts . | . . . . Stealth | -11 -10 -9 -9 --------- Run | Scr Mat Mat Sto Distress Signals 2 | . 1 . 1 Communications Jammed . | . . . . Distress Signals . | . . . . Times Spotted 35 | . 7 14 14 Peak Tracking Total 13 | . 5 13 9 Tactical Retreats 2 | . . 1 1 Traps | -11 -10 -9 -9 ------- Run | Scr Mat Mat Sto Traps Triggered 2 | . . 1 1 Indirectly . | . . . . Trap Hack Attempts . | . . . . Triggered . | . . . . Disarmed . | . . . . Reprogrammed . | . . . . Reused . | . . . . Traps Extracted . | . . . . Installed . | . . . . Triggered . | . . . . Machines | -11 -10 -9 -9 ---------- Run | Scr Mat Mat Sto Machines Disabled . | . . . . Max in Single Turn . | . . . . Machines Sabotaged . | . . . . Garrisons Compromised . | . . . . Overloaded Fab Kills . | . . . . Hacking | -11 -10 -9 -9 --------- Run | Scr Mat Mat Sto Machines Accessed 6 | . 3 . 3 Terminals 6 | . 3 . 3 Fabricators . | . . . . Repair Stations . | . . . . Recycling Units . | . . . . Scanalyzers . | . . . . Garrison Access . | . . . . Total Hacks 12 | . 6 . 6 Successful 6 | . 3 . 3 Failed 6 | . 3 . 3 Catastrophic . | . . . . Database Lockouts . | . . . . Manual . | . . . . Terminals 12 | . 6 . 6 Fabricators . | . . . . Repair Stations . | . . . . Recycling Units . | . . . . Scanalyzers . | . . . . Garrison Access . | . . . . Terminal Hacks 6 | . 3 . 3 Record 1 | . 1 . . Robot Analysis 1 | . 1 . . Open Door 1 | . . . 1 Maintenance Status 1 | . . . 1 Recall Investigation 1 | . 1 . . Zone Layout 1 | . . . 1 Fabricator Hacks . | . . . . Repair Station Hacks . | . . . . Recycling Unit Hacks . | . . . . Scanalyzer . | . . . . Garrison Access Hacks . | . . . . Unauthorized Hacks . | . . . . Terminals . | . . . . Fabricators . | . . . . Repair Stations . | . . . . Recycling Units . | . . . . Scanalyzers . | . . . . Garrison Access . | . . . . Data Cores Recovered . | . . . . Used . | . . . . Hacking Detections 5 | . 3 . 2 Full Trace Events . | . . . . Feedback Events . | . . . . Feedback Blocked . | . . . . Robot Schematics Acquired . | . . . . Robots Built . | . . . . Authchips . | . . . . Time . | . . . . Total Robot Build Rating . | . . . . Part Schematics Acquired . | . . . . Parts Built . | . . . . Authchips . | . . . . Time . | . . . . Total Part Build Rating . | . . . . Parts Repaired . | . . . . Time . | . . . . Parts Recycled . | . . . . Recycled Matter . | . . . . Retrieved Matter . | . . . . Retrieved Components . | . . . . Parts Scanalyzed . | . . . . Part Schematics Acquired . | . . . . Parts Damaged . | . . . . Bothacking | -11 -10 -9 -9 ------------ Run | Scr Mat Mat Sto Used RIF Installer . | . . . . Robots Hacked . | . . . . Non-combat . | . . . . Combat . | . . . . Robot Hacks Applied . | . . . . Relay Couplers Released . | . . . . Fabnet Peak Effective % . | . . . . Robots Rewired . | . . . . Allies Hacked . | . . . . Hacks Repelled . | . . . . Allies | -11 -10 -9 -9 -------- Run | Scr Mat Mat Sto Total Allies . | . . . . Largest Group . | . . . . Highest-Rated Group . | . . . . Highest-Rated Ally . | . . . . Total Orders . | . . . . Ally Attacks . | . . . . Total Damage . | . . . . Kills . | . . . . Allies Corrupted . | . . . . Allies Melted . | . . . . Intel | -11 -10 -9 -9 ------- Run | Scr Mat Mat Sto Robot Analysis Total 1 | . 1 . . Derelict Logs Recovered . | . . . . Drone Launches . | . . . . Drone Recoveries . | . . . . Exploration | -11 -10 -9 -9 ------------- Run | Scr Mat Mat Sto Turns Passed 531 | 67 178 170 116 Spaces Moved 613 | 45 183 210 175 Core 236 | 6 . 94 136 Treads . | . . . . Legs . | . . . . Wheels 338 | 39 183 116 . Hover . | . . . . Flight 39 | . . . 39 Fastest Speed 37 | 50 80 50 37 Average Speed 71 | 84 86 76 47 Slowest Speed 115 | 90 90 115 100 Overloaded Moves . | . . . . Propulsion Burnouts . | . . . . Robots Hopped 3 | . . . 3 Cave-ins Triggered . | . . . . Exploration Rate (%) 28 | 4 42 26 43 Regions Visited 3 Branch Regions 1 Pre-discovered Areas . | . . . . Known Exits Taken . | . . . . Unknown Exits Taken 3 | 1 1 1 . Scrap Searched . | . . . . Spaces Dug . | . . . . Terrain Destroyed . | . . . . Melee . | . . . . Projectile . | . . . . AOE . | . . . . Terrain Rammed . | . . . . Walls Destroyed . | . . . . Machines Disabled . | . . . . Actions | -11 -10 -9 -9 --------- Run | Scr Mat Mat Sto Total 675 | 64 193 220 198 Wait 4 | . . . 4 Move 604 | 44 182 209 169 Hop 3 | . . . 3 Pick Up 22 | 8 3 5 6 Fast Attach . | . . . . Attach 20 | 7 2 3 8 Detach 1 | . . . 1 Swap . | . . . . Drop 4 | . 1 3 . Fire 17 | 5 5 . 7 Melee . | . . . . Ram . | . . . . Kick . | . . . . Crush . | . . . . Escape Stasis . | . . . . Rewire . | . . . . Trap . | . . . . Miscellaneous . | . . . . Route ------- -11/Scrapyard -10/Materials (discovered 2 exits: [*Mat] / [*Min]) -9/Materials (discovered 2 exits: [*Min] / *Sto) -9/Storage History --------- Turn | Location | Event 6 | -11/Scrapyard | Discovered new exit (range 16) 68 | -11/Scrapyard | Entered Materials 111 | -10/Materials | Discovered new exit (range 9) 237 | -10/Materials | Discovered new exit (range 11) 246 | -10/Materials | Entered another Materials area 246 | -9/Materials | Evolved 2 slots: Utility x2 307 | -9/Materials | Build established: Mutant 361 | -9/Materials | Discovered new exit (range 15) 408 | -9/Materials | Discovered new exit (range 15) 416 | -9/Materials | Entered Storage 419 | -9/Storage | Lost 6 parts (1p3n1u1w) 466 | -9/Storage | Core integrity fell below 50% 501 | -9/Storage | Core integrity fell below 20% 532 | -9/Storage | Destroyed by G-34 Mercenary with Small Laser Last Messages --------------- Identified Imp. Medium Laser. Acquired Imp. Medium Laser. K-01 Serf collects debris. Terrain Scanner destroyed. K-01 Serf collects debris. Connecting with Door Terminal... S-10 Pest destroyed. K-01 Serf collects debris. S-10 Pest destroyed. K-01 Serf collects debris. Flight Unit melted. S-10 Pest destroyed. Acquired 17 matter. Acquired Flight Unit. Critical hit (Burn: +37). K-01 Serf destroyed. Acquired Flight Unit. Acquired 27 matter. Acquired 11 matter. W-16 Scout sends out distress signal. Map ----- +----------------------------------------------------+ | ????????????????????????????????????# T## ## | | ????????????????????????????????????# # ## | | ??????????????????????????????????#?# + ## | | ????????????????????????????????????# # ##### | | ????????????????????????????????????# ## ## | | ??????????????????????????????#?????###### ## | | ??????????????????????????????########### # "" | | ??????????????????????????????# # "" | | ??????????????????????????????# + "" | | ????????????????????????? ???# # "" | | ????????????????????????? ???########### # "" | | ????????????????????????? ????#?????#######+## | | ????????????????????????# ??????????# #??? | | ????????????????????????# #?????????# """" #??? | | ????????????????????????#o #?????????# ""??? #??? | | ????????????????????????# #?????????# ""???? #??" | | ????????????????????????# #?????????# "????" #??? | | ????????????????????????# #?????????# "???" #??? | | ???????????????????????? #?????????# """" #??? | | ????????????????????????#g #?????????# #??? | | ????????????????????????# #?????????# #??? | | ????????????????????????# w#?#+####??####+#####??? | | ?????????????????" ###### ### ##### ####### | | ?????????????????" / ^ | | ????????????????????????# ! | | ????????????????????#####@#### ##### ####### | | ????????????????????# ## ##???##+###??# ] | | ????????????????????# """ ## #???? ???#! [ | | ????????????????????# k """ ## #?? """""??# | | ???????????????????"" """ ## #?# ???????# | | ?????????????????#"R ## #?# ????????#% | | ?????????????????#""" """ # ?# ?????????# | | ?????????????????#### """ # ?#??????????# | | ????????????????????# ""??# ???????????# | | ????????????????????# ???# #???????????# | | ????????????????????######???##+###???????????# | | ??????????????????????????????????????????????# | | ??????????????????????????????????????????????# | | ??????????????????????????????????????????????#### | | ?????????????????????????????????????????????????? | | ?????????????????????????????????????????????????? | | ?????????????????????????????????????????????????? | | ?????????????????????????????????????????????????? | | ?????????????????????????????????????????????????? | | ?????????????????????????????????????????????????? | | | | | | | | | | | +----------------------------------------------------+ Best States ------------- Heat Dissipation 28 Energy Generation 10 Energy Capacity 250 Matter Stores 300 Matter Capacity 300 Sight Range 16 Terrain Scan Range 14 Terrain Scan Density 160 Evasion (%) 62 Item Schematics ----------------- None Robot Schematics ------------------ None Fabricated ------------ Nothing Alien Tech Used ----------------- None Achievements -------------- None Challenges ------------ None Game ------ Seed GyrokineticOpticalSteel Manual? 0 Play Time 00:09:37 Cumulative 36.4 hours Start 2022.12.14 @ 17:23:56 End 2022.12.14 @ 17:33:22 Sessions 1 Manual Loads 0 Difficulty Rogue Special Mode None Game No. 57 Rogue 57 Adventurer 0 Explorer 0 Win Type - Total 1 Types 1/0/0/0/0/0/0/0/0 Lore% 28 Gallery% 35 Achievement% 30 Wizard Run 0 Options --------- ASCII 0 Keyboard 0 Movement Arrows Keybinds 0 Fullscreen 2 Font 16/SmallcapsGlow Map View 76x50 Tactical HUD 0 Map Filters NONE Filters NONE Steam 1 RUN: 43703be2-756a-40b3-9042-e74245785917